[Event "Titled Tuesday Blitz April 11 Late 2023"]
[White "Smith, Garrett L"]
[Black "Krishnan, Varun"]
[WhiteFideId "2024829"]
[BlackFideId "5054508"]
[WhiteElo "2047"]
[BlackElo "2341"]
[Result "1-0"]
[Round "03"]
[TimeControl "180+2"]
[Date "2023.04.11"]
[WhiteClock "0:00:16"]
[BlackClock "0:00:05"]

1. e4 {[%clk 0:03:00]}  e5 {[%clk 0:03:00]} 2. Nf3 {[%clk 0:03:00]}  Nc6 {[%clk 0:03:00]} 3. Bc4 {[%clk 0:03:00]}  Nf6 {[%clk 0:02:59]} 4. Ng5 {[%clk 0:03:01]}  d5 {[%clk 0:02:59]} 5. exd5 {[%clk 0:03:01]}  Na5 {[%clk 0:02:59]} 6. Bb5+ {[%clk 0:03:02]}  c6 {[%clk 0:02:56]} 7. dxc6 {[%clk 0:03:03]}  bxc6 {[%clk 0:02:56]} 8. Bd3 {[%clk 0:03:03]}  Nb7 {[%clk 0:02:49]} 9. O-O {[%clk 0:02:58]}  Be7 {[%clk 0:02:45]} 10. Re1 {[%clk 0:02:57]}  Qc7 {[%clk 0:02:44]} 11. Bf1 {[%clk 0:02:47]}  O-O {[%clk 0:02:44]} 12. d3 {[%clk 0:02:47]}  Nc5 {[%clk 0:02:42]} 13. Nc3 {[%clk 0:02:43]}  h6 {[%clk 0:02:35]} 14. Nge4 {[%clk 0:02:40]}  Ncxe4 {[%clk 0:02:33]} 15. dxe4 {[%clk 0:02:32]}  Bc5 {[%clk 0:02:27]} 16. h3 {[%clk 0:02:28]}  Bd4 {[%clk 0:02:21]} 17. Qf3 {[%clk 0:02:27]}  Rb8 {[%clk 0:02:19]} 18. b3 {[%clk 0:02:12]}  Qa5 {[%clk 0:02:08]} 19. Bd2 {[%clk 0:02:11]}  Qc5 {[%clk 0:02:05]} 20. Rac1 {[%clk 0:02:06]}  Qa3 {[%clk 0:01:59]} 21. Ne2 {[%clk 0:01:43]}  Bb6 {[%clk 0:01:58]} 22. Bxh6 {[%clk 0:01:40]}  Ne8 {[%clk 0:01:53]} 23. Be3 {[%clk 0:01:38]}  Qxa2 {[%clk 0:01:48]} 24. Ng3 {[%clk 0:01:19]}  Nd6 {[%clk 0:01:44]} 25. Bd3 {[%clk 0:01:19]}  Qb2 {[%clk 0:01:30]} 26. Bd2 {[%clk 0:01:09]}  Nb5 {[%clk 0:01:20]} 27. Bb4 {[%clk 0:00:58]}  Re8 {[%clk 0:01:19]} 28. Rb1 {[%clk 0:00:54]}  Qd4 {[%clk 0:01:18]} 29. Bd2 {[%clk 0:00:50]}  Qd6 {[%clk 0:01:12]} 30. Be3 {[%clk 0:00:48]}  Nd4 {[%clk 0:01:09]} 31. Qh5 {[%clk 0:00:41]}  Qf8 {[%clk 0:00:42]} 32. Rbd1 {[%clk 0:00:41]}  g6 {[%clk 0:00:38]} 33. Qh6 {[%clk 0:00:37]}  Qxh6 {[%clk 0:00:33]} 34. Bxh6 {[%clk 0:00:37]}  a5 {[%clk 0:00:29]} 35. Ra1 {[%clk 0:00:34]}  Ne6 {[%clk 0:00:26]} 36. Bd2 {[%clk 0:00:34]}  Ra8 {[%clk 0:00:25]} 37. Ra2 {[%clk 0:00:34]}  Nc5 {[%clk 0:00:22]} 38. Bc4 {[%clk 0:00:33]}  Be6 {[%clk 0:00:20]} 39. Rea1 {[%clk 0:00:29]}  Bxc4 {[%clk 0:00:19]} 40. bxc4 {[%clk 0:00:30]}  a4 {[%clk 0:00:19]} 41. Bb4 {[%clk 0:00:30]}  Rab8 {[%clk 0:00:16]} 42. Bxc5 {[%clk 0:00:29]}  Bxc5 {[%clk 0:00:17]} 43. Rxa4 {[%clk 0:00:28]}  Rb2 {[%clk 0:00:17]} 44. R4a2 {[%clk 0:00:26]}  Rb4 {[%clk 0:00:16]} 45. Ra4 {[%clk 0:00:26]}  Rb2 {[%clk 0:00:16]} 46. Ra5 {[%clk 0:00:19]}  Bd4 {[%clk 0:00:16]} 47. Ne2 {[%clk 0:00:14]}  Rxc2 {[%clk 0:00:16]} 48. Nxd4 {[%clk 0:00:15]}  exd4 {[%clk 0:00:16]} 49. Rc5 {[%clk 0:00:15]}  Rxe4 {[%clk 0:00:16]} 50. Rd1 {[%clk 0:00:15]}  Ree2 {[%clk 0:00:12]} 51. Rxd4 {[%clk 0:00:14]}  Rxf2 {[%clk 0:00:13]} 52. Rg4 {[%clk 0:00:15]}  Kg7 {[%clk 0:00:13]} 53. Rxc6 {[%clk 0:00:15]}  Rfd2 {[%clk 0:00:13]} 54. Rg3 {[%clk 0:00:16]}  Rd1+ {[%clk 0:00:13]} 55. Kh2 {[%clk 0:00:16]}  Rcc1 {[%clk 0:00:14]} 56. Rf3 {[%clk 0:00:16]}  Rh1+ {[%clk 0:00:12]} 57. Kg3 {[%clk 0:00:16]}  Rc2 {[%clk 0:00:13]} 58. Rc7 {[%clk 0:00:16]}  Rg1 {[%clk 0:00:09]} 59. Rfxf7+ {[%clk 0:00:16]}  Kh6 {[%clk 0:00:08]} 60. Rh7+ {[%clk 0:00:17]}  Kg5 {[%clk 0:00:09]} 61. h4+ {[%clk 0:00:17]}  Kf6 {[%clk 0:00:09]} 62. Kf4 {[%clk 0:00:16]}  Rgxg2 {[%clk 0:00:05]} 63. Rc6# {[%clk 0:00:16]} 1-0


[Site "https://www.chess.com"]

[Event "Titled Tuesday Blitz April 11 Late 2023"]
[White "Kohler, Aran"]
[Black "Hadzovic, Amir"]
[WhiteFideId "1002856"]
[BlackFideId "14402300"]
[WhiteElo "2010"]
[BlackElo "2294"]
[Result "0-1"]
[Round "03"]
[TimeControl "180+2"]
[Date "2023.04.11"]
[WhiteClock "0:00:06"]
[BlackClock "0:00:03"]

1. d4 {[%clk 0:02:59]}  d6 {[%clk 0:02:59]} 2. Bg5 {[%clk 0:02:58]}  g6 {[%clk 0:02:56]} 3. c3 {[%clk 0:02:57]}  Bg7 {[%clk 0:02:57]} 4. Nd2 {[%clk 0:02:56]}  Nf6 {[%clk 0:02:57]} 5. e3 {[%clk 0:02:55]}  O-O {[%clk 0:02:57]} 6. Bd3 {[%clk 0:02:55]}  b6 {[%clk 0:02:57]} 7. Ngf3 {[%clk 0:02:51]}  Bb7 {[%clk 0:02:58]} 8. h4 {[%clk 0:02:51]}  h5 {[%clk 0:02:57]} 9. e4 {[%clk 0:02:42]}  Nbd7 {[%clk 0:02:55]} 10. Qb3 {[%clk 0:02:39]}  Nh7 {[%clk 0:02:37]} 11. e5 {[%clk 0:02:28]}  Nxg5 {[%clk 0:01:58]} 12. hxg5 {[%clk 0:02:22]}  e6 {[%clk 0:01:55]} 13. exd6 {[%clk 0:02:05]}  cxd6 {[%clk 0:01:56]} 14. O-O-O {[%clk 0:02:04]}  Rc8 {[%clk 0:01:40]} 15. Kb1 {[%clk 0:02:04]}  Bd5 {[%clk 0:01:38]} 16. Qc2 {[%clk 0:01:56]}  b5 {[%clk 0:01:10]} 17. Bxb5 {[%clk 0:01:24]}  Nb6 {[%clk 0:01:05]} 18. Bd3 {[%clk 0:01:20]}  Rb8 {[%clk 0:01:02]} 19. Ka1 {[%clk 0:01:19]}  a5 {[%clk 0:00:58]} 20. Nh4 {[%clk 0:01:08]}  Qxg5 {[%clk 0:00:54]} 21. Nxg6 {[%clk 0:00:49]}  fxg6 {[%clk 0:00:52]} 22. Bxg6 {[%clk 0:00:49]}  Rxf2 {[%clk 0:00:45]} 23. Rxh5 {[%clk 0:00:41]}  Qxg2 {[%clk 0:00:42]} 24. Qd3 {[%clk 0:00:26]}  Nc4 {[%clk 0:00:21]} 25. Nxc4 {[%clk 0:00:22]}  Bxc4 {[%clk 0:00:07]} 26. Bh7+ {[%clk 0:00:20]}  Kf7 {[%clk 0:00:07]} 27. Qxc4 {[%clk 0:00:19]}  Qg4 {[%clk 0:00:07]} 28. Qc7+ {[%clk 0:00:16]}  Kf6 {[%clk 0:00:05]} 29. Rhh1 {[%clk 0:00:16]}  Rbxb2 {[%clk 0:00:04]} 30. Bb1 {[%clk 0:00:14]}  Qe2 {[%clk 0:00:02]} 31. Qc4 {[%clk 0:00:11]}  Qxc4 {[%clk 0:00:01]} 32. Rhf1 {[%clk 0:00:07]}  Rxa2+ {[%clk 0:00:02]} 33. Bxa2 {[%clk 0:00:06]}  Qxa2# {[%clk 0:00:03]} 0-1


[Site "https://www.chess.com"]

[Event "Titled Tuesday Blitz April 11 Late 2023"]
[White "Rian, Kapriaga"]
[Black "Dauner, Benedikt"]
[WhiteFideId "7103263"]
[BlackFideId "16225899"]
[WhiteElo "2089"]
[BlackElo "2205"]
[Result "0-1"]
[Round "03"]
[TimeControl "180+2"]
[Date "2023.04.11"]
[WhiteClock "0:00:01"]
[BlackClock "0:00:20"]

1. d4 {[%clk 0:03:00]}  Nf6 {[%clk 0:02:58]} 2. Nf3 {[%clk 0:03:00]}  g6 {[%clk 0:02:56]} 3. Bg5 {[%clk 0:02:59]}  Bg7 {[%clk 0:02:54]} 4. Nbd2 {[%clk 0:02:58]}  d6 {[%clk 0:02:52]} 5. e4 {[%clk 0:02:58]}  O-O {[%clk 0:02:47]} 6. c3 {[%clk 0:02:55]}  Nc6 {[%clk 0:02:46]} 7. Be2 {[%clk 0:02:51]}  h6 {[%clk 0:02:41]} 8. Bh4 {[%clk 0:02:50]}  e5 {[%clk 0:02:39]} 9. dxe5 {[%clk 0:02:50]}  Nxe5 {[%clk 0:02:36]} 10. Nxe5 {[%clk 0:02:49]}  dxe5 {[%clk 0:02:37]} 11. O-O {[%clk 0:02:47]}  g5 {[%clk 0:02:13]} 12. Bg3 {[%clk 0:02:43]}  Qe7 {[%clk 0:02:14]} 13. Qc2 {[%clk 0:02:42]}  b6 {[%clk 0:02:09]} 14. a4 {[%clk 0:02:37]}  a5 {[%clk 0:02:06]} 15. f3 {[%clk 0:02:35]}  Nh5 {[%clk 0:01:54]} 16. Bf2 {[%clk 0:02:34]}  Nf4 {[%clk 0:01:51]} 17. Nc4 {[%clk 0:02:30]}  Ba6 {[%clk 0:01:45]} 18. Rfd1 {[%clk 0:02:20]}  Qe6 {[%clk 0:01:41]} 19. b3 {[%clk 0:02:09]}  Nxe2+ {[%clk 0:01:26]} 20. Qxe2 {[%clk 0:02:07]}  Rfd8 {[%clk 0:01:24]} 21. g4 {[%clk 0:01:53]}  Bf8 {[%clk 0:01:22]} 22. Kg2 {[%clk 0:01:50]}  f6 {[%clk 0:01:20]} 23. h4 {[%clk 0:01:47]}  Be7 {[%clk 0:01:18]} 24. hxg5 {[%clk 0:01:41]}  hxg5 {[%clk 0:01:16]} 25. Rxd8+ {[%clk 0:00:33]}  Rxd8 {[%clk 0:01:15]} 26. Rd1 {[%clk 0:00:32]}  Rxd1 {[%clk 0:01:01]} 27. Qxd1 {[%clk 0:00:32]}  Bxc4 {[%clk 0:01:02]} 28. bxc4 {[%clk 0:00:32]}  Qxc4 {[%clk 0:01:02]} 29. Qd7 {[%clk 0:00:28]}  Kf7 {[%clk 0:01:02]} 30. Be1 {[%clk 0:00:09]}  c6 {[%clk 0:00:48]} 31. Qc7 {[%clk 0:00:04]}  b5 {[%clk 0:00:38]} 32. axb5 {[%clk 0:00:03]}  Qxb5 {[%clk 0:00:24]} 33. Qd7 {[%clk 0:00:01]}  Qc4 {[%clk 0:00:20]} 0-1


[Site "https://www.chess.com"]

[Event "Titled Tuesday Blitz April 11 Late 2023"]
[White "Santos Flores, Alberto"]
[Black "De Souza, Cristiano Gomes"]
[WhiteFideId "3601234"]
[BlackFideId "2151758"]
[WhiteElo "2235"]
[BlackElo "2068"]
[Result "1-0"]
[Round "03"]
[TimeControl "180+2"]
[Date "2023.04.11"]
[WhiteClock "0:01:55"]
[BlackClock "0:01:26"]

1. d4 {[%clk 0:03:00]}  Nf6 {[%clk 0:02:57]} 2. Bf4 {[%clk 0:03:00]}  g6 {[%clk 0:02:57]} 3. Nd2 {[%clk 0:03:00]}  Bg7 {[%clk 0:02:57]} 4. e4 {[%clk 0:03:00]}  d6 {[%clk 0:02:58]} 5. Ngf3 {[%clk 0:03:00]}  h6 {[%clk 0:02:56]} 6. Bd3 {[%clk 0:02:59]}  c6 {[%clk 0:02:56]} 7. Qe2 {[%clk 0:02:56]}  g5 {[%clk 0:02:56]} 8. Bg3 {[%clk 0:02:56]}  Nh5 {[%clk 0:02:54]} 9. O-O-O {[%clk 0:02:53]}  Qa5 {[%clk 0:02:49]} 10. Kb1 {[%clk 0:02:52]}  Be6 {[%clk 0:02:47]} 11. Nb3 {[%clk 0:02:50]}  Bxb3 {[%clk 0:02:45]} 12. axb3 {[%clk 0:02:50]}  Nxg3 {[%clk 0:02:45]} 13. hxg3 {[%clk 0:02:50]}  Nd7 {[%clk 0:02:45]} 14. c3 {[%clk 0:02:33]}  Qc7 {[%clk 0:02:43]} 15. g4 {[%clk 0:02:30]}  a5 {[%clk 0:02:41]} 16. Nd2 {[%clk 0:02:29]}  a4 {[%clk 0:02:40]} 17. b4 {[%clk 0:02:29]}  c5 {[%clk 0:02:40]} 18. bxc5 {[%clk 0:02:28]}  dxc5 {[%clk 0:02:39]} 19. e5 {[%clk 0:02:27]}  e6 {[%clk 0:02:37]} 20. Ne4 {[%clk 0:02:26]}  O-O-O {[%clk 0:02:25]} 21. Nd6+ {[%clk 0:02:24]}  Kb8 {[%clk 0:02:24]} 22. Nxf7 {[%clk 0:02:24]}  Nb6 {[%clk 0:02:15]} 23. Nxh8 {[%clk 0:02:23]}  Rxh8 {[%clk 0:02:12]} 24. Bb5 {[%clk 0:02:16]}  a3 {[%clk 0:02:12]} 25. bxa3 {[%clk 0:02:15]}  Nd5 {[%clk 0:02:11]} 26. Rc1 {[%clk 0:02:12]}  Qa5 {[%clk 0:02:06]} 27. Kb2 {[%clk 0:02:08]}  Rc8 {[%clk 0:02:02]} 28. Bd7 {[%clk 0:02:02]}  Nf4 {[%clk 0:01:42]} 29. Qb5 {[%clk 0:01:59]}  Qxb5+ {[%clk 0:01:40]} 30. Bxb5 {[%clk 0:02:00]}  c4 {[%clk 0:01:39]} 31. Rc2 {[%clk 0:01:56]}  Nxg2 {[%clk 0:01:34]} 32. Bd7 {[%clk 0:01:56]}  Rf8 {[%clk 0:01:27]} 33. Bxe6 {[%clk 0:01:55]}  Nf4 {[%clk 0:01:26]} 34. Bxc4 {[%clk 0:01:55]} 1-0


[Site "https://www.chess.com"]

[Event "Titled Tuesday Blitz April 11 Late 2023"]
[White "Quispe Santacruz, Javier"]
[Black "Torrente, Alejandro Josue"]
[WhiteFideId "3800920"]
[BlackFideId "4437969"]
[WhiteElo "1875"]
[BlackElo "2025"]
[Result "1-0"]
[Round "03"]
[TimeControl "180+2"]
[Date "2023.04.11"]
[WhiteClock "0:00:11"]
[BlackClock "0:01:18"]

1. d4 {[%clk 0:02:52]}  d5 {[%clk 0:02:59]} 2. c4 {[%clk 0:02:46]}  e6 {[%clk 0:02:59]} 3. Nc3 {[%clk 0:02:45]}  Nf6 {[%clk 0:02:59]} 4. cxd5 {[%clk 0:02:45]}  exd5 {[%clk 0:02:59]} 5. Bg5 {[%clk 0:02:44]}  Be7 {[%clk 0:02:52]} 6. Qc2 {[%clk 0:02:42]}  h6 {[%clk 0:02:47]} 7. Bh4 {[%clk 0:02:42]}  O-O {[%clk 0:02:46]} 8. e3 {[%clk 0:02:41]}  Be6 {[%clk 0:02:41]} 9. Bd3 {[%clk 0:02:38]}  Nbd7 {[%clk 0:02:38]} 10. Nf3 {[%clk 0:02:36]}  c5 {[%clk 0:02:38]} 11. O-O {[%clk 0:02:35]}  Rc8 {[%clk 0:02:28]} 12. Bf5 {[%clk 0:02:32]}  cxd4 {[%clk 0:02:14]} 13. Nxd4 {[%clk 0:02:21]}  Bxf5 {[%clk 0:02:12]} 14. Nxf5 {[%clk 0:02:20]}  Bb4 {[%clk 0:02:11]} 15. Qb3 {[%clk 0:02:13]}  Qa5 {[%clk 0:02:04]} 16. Rac1 {[%clk 0:01:57]}  Bxc3 {[%clk 0:02:03]} 17. Ne7+ {[%clk 0:01:37]}  Kh8 {[%clk 0:02:03]} 18. Nxc8 {[%clk 0:01:37]}  Be5 {[%clk 0:01:43]} 19. Qxb7 {[%clk 0:01:20]}  Nc5 {[%clk 0:01:21]} 20. Qxa7 {[%clk 0:00:50]}  Qxa7 {[%clk 0:01:10]} 21. Nxa7 {[%clk 0:00:51]}  Nd3 {[%clk 0:01:11]} 22. Rc2 {[%clk 0:00:49]}  Nxb2 {[%clk 0:01:11]} 23. Nc6 {[%clk 0:00:46]}  Rc8 {[%clk 0:01:08]} 24. Rfc1 {[%clk 0:00:37]}  Rxc6 {[%clk 0:01:03]} 25. Rxc6 {[%clk 0:00:35]}  Ne4 {[%clk 0:01:03]} 26. R1c2 {[%clk 0:00:28]}  Nd3 {[%clk 0:01:00]} 27. a4 {[%clk 0:00:23]}  Nb4 {[%clk 0:00:59]} 28. Rc8+ {[%clk 0:00:23]}  Kh7 {[%clk 0:01:00]} 29. a5 {[%clk 0:00:23]}  g5 {[%clk 0:01:00]} 30. Bg3 {[%clk 0:00:22]}  Bc3 {[%clk 0:00:59]} 31. R2xc3 {[%clk 0:00:21]}  Nxc3 {[%clk 0:01:00]} 32. Rxc3 {[%clk 0:00:22]}  Kg6 {[%clk 0:01:00]} 33. a6 {[%clk 0:00:22]}  Nxa6 {[%clk 0:01:01]} 34. Rc6+ {[%clk 0:00:22]}  Kf5 {[%clk 0:01:01]} 35. Rxa6 {[%clk 0:00:23]}  f6 {[%clk 0:01:02]} 36. Bd6 {[%clk 0:00:22]}  h5 {[%clk 0:01:03]} 37. Be7 {[%clk 0:00:23]}  h4 {[%clk 0:01:03]} 38. Rxf6+ {[%clk 0:00:22]}  Ke4 {[%clk 0:01:04]} 39. Rg6 {[%clk 0:00:22]}  d4 {[%clk 0:01:05]} 40. exd4 {[%clk 0:00:22]}  Kxd4 {[%clk 0:01:05]} 41. Rxg5 {[%clk 0:00:22]}  h3 {[%clk 0:01:06]} 42. gxh3 {[%clk 0:00:21]}  Ke4 {[%clk 0:01:06]} 43. Rg3 {[%clk 0:00:20]}  Kf5 {[%clk 0:01:07]} 44. h4 {[%clk 0:00:20]}  Kf4 {[%clk 0:01:08]} 45. h5 {[%clk 0:00:21]}  Kf5 {[%clk 0:01:09]} 46. h6 {[%clk 0:00:21]}  Kf4 {[%clk 0:01:09]} 47. h7 {[%clk 0:00:22]}  Kf5 {[%clk 0:01:10]} 48. Bf6 {[%clk 0:00:22]}  Kf4 {[%clk 0:01:11]} 49. Bd4 {[%clk 0:00:21]}  Kf5 {[%clk 0:01:12]} 50. Be3 {[%clk 0:00:21]}  Ke4 {[%clk 0:01:13]} 51. h8=Q {[%clk 0:00:19]}  Kd3 {[%clk 0:01:13]} 52. Ba7+ {[%clk 0:00:18]}  Ke2 {[%clk 0:01:14]} 53. Qe5+ {[%clk 0:00:17]}  Kd1 {[%clk 0:01:15]} 54. Rd3+ {[%clk 0:00:17]}  Kc2 {[%clk 0:01:16]} 55. Qc3+ {[%clk 0:00:16]}  Kb1 {[%clk 0:01:17]} 56. Rd1+ {[%clk 0:00:14]}  Ka2 {[%clk 0:01:18]} 57. Ra1# {[%clk 0:00:11]} 1-0


[Site "https://www.chess.com"]

[Event "Titled Tuesday Blitz April 11 Late 2023"]
[White "Fernandez, Maria Florencia"]
[Black "Vujcic, Milena"]
[WhiteFideId "116459"]
[BlackFideId "954748"]
[WhiteElo "2120"]
[BlackElo "1882"]
[Result "1-0"]
[Round "03"]
[TimeControl "180+2"]
[Date "2023.04.11"]
[WhiteClock "0:00:44"]
[BlackClock "0:00:06"]

1. d4 {[%clk 0:03:00]}  Nf6 {[%clk 0:02:57]} 2. c4 {[%clk 0:02:55]}  g6 {[%clk 0:02:57]} 3. Nc3 {[%clk 0:02:53]}  Bg7 {[%clk 0:02:57]} 4. e4 {[%clk 0:02:54]}  d6 {[%clk 0:02:57]} 5. Be2 {[%clk 0:02:54]}  O-O {[%clk 0:02:58]} 6. Be3 {[%clk 0:02:55]}  e5 {[%clk 0:02:58]} 7. d5 {[%clk 0:02:55]}  a5 {[%clk 0:02:57]} 8. g4 {[%clk 0:02:55]}  Na6 {[%clk 0:02:57]} 9. h4 {[%clk 0:02:54]}  Nc5 {[%clk 0:02:56]} 10. f3 {[%clk 0:02:54]}  Nfd7 {[%clk 0:02:55]} 11. h5 {[%clk 0:02:53]}  f5 {[%clk 0:02:31]} 12. hxg6 {[%clk 0:02:52]}  hxg6 {[%clk 0:02:32]} 13. gxf5 {[%clk 0:02:53]}  gxf5 {[%clk 0:02:33]} 14. Qd2 {[%clk 0:02:48]}  f4 {[%clk 0:02:26]} 15. Bf2 {[%clk 0:02:47]}  Rf6 {[%clk 0:02:15]} 16. O-O-O {[%clk 0:02:45]}  Nb6 {[%clk 0:01:58]} 17. Nh3 {[%clk 0:02:39]}  Rh6 {[%clk 0:01:50]} 18. Bf1 {[%clk 0:02:08]}  Nxc4 {[%clk 0:01:40]} 19. Bxc4 {[%clk 0:02:08]}  Bxh3 {[%clk 0:01:31]} 20. Bxc5 {[%clk 0:01:58]}  dxc5 {[%clk 0:01:31]} 21. d6+ {[%clk 0:01:50]}  Kh8 {[%clk 0:01:31]} 22. Rxh3 {[%clk 0:01:22]}  Rxh3 {[%clk 0:01:30]} 23. Qg2 {[%clk 0:01:23]}  Qh4 {[%clk 0:01:27]} 24. dxc7 {[%clk 0:01:05]}  Rh2 {[%clk 0:00:59]} 25. Qg1 {[%clk 0:00:48]}  Bf6 {[%clk 0:00:20]} 26. Rd8+ {[%clk 0:00:44]}  Kh7 {[%clk 0:00:06]} 1-0


[Site "https://www.chess.com"]

[Event "Titled Tuesday Blitz April 11 Late 2023"]
[White "Gonzalez Zamora, Juan Carlos"]
[Black "Almeida Junior, Alvaro Alves de"]
[WhiteFideId "3507548"]
[BlackFideId "2149974"]
[WhiteElo "2535"]
[BlackElo "2122"]
[Result "0-1"]
[Round "03"]
[TimeControl "180+2"]
[Date "2023.04.11"]
[WhiteClock "0:00:16"]
[BlackClock "0:00:06"]

1. e4 {[%clk 0:03:00]}  c5 {[%clk 0:02:59]} 2. Nf3 {[%clk 0:03:00]}  d6 {[%clk 0:02:59]} 3. d4 {[%clk 0:03:01]}  cxd4 {[%clk 0:03:00]} 4. Qxd4 {[%clk 0:03:00]}  a6 {[%clk 0:02:57]} 5. c4 {[%clk 0:02:59]}  Nc6 {[%clk 0:02:55]} 6. Qe3 {[%clk 0:03:00]}  Nf6 {[%clk 0:02:55]} 7. Nc3 {[%clk 0:03:00]}  g6 {[%clk 0:02:55]} 8. Be2 {[%clk 0:02:59]}  Bg7 {[%clk 0:02:54]} 9. O-O {[%clk 0:02:59]}  O-O {[%clk 0:02:55]} 10. h3 {[%clk 0:02:58]}  Be6 {[%clk 0:02:50]} 11. Rb1 {[%clk 0:02:56]}  Rc8 {[%clk 0:02:46]} 12. b3 {[%clk 0:02:56]}  Nd7 {[%clk 0:02:37]} 13. Bb2 {[%clk 0:02:56]}  Qb6 {[%clk 0:02:19]} 14. Qd2 {[%clk 0:02:43]}  Rfd8 {[%clk 0:02:04]} 15. Rfe1 {[%clk 0:02:07]}  Nde5 {[%clk 0:01:55]} 16. Na4 {[%clk 0:01:58]}  Qc7 {[%clk 0:01:47]} 17. Nd4 {[%clk 0:01:54]}  Nxd4 {[%clk 0:01:26]} 18. Bxd4 {[%clk 0:01:55]}  Nd7 {[%clk 0:01:27]} 19. Bxg7 {[%clk 0:01:46]}  Kxg7 {[%clk 0:01:28]} 20. f4 {[%clk 0:01:45]}  Nc5 {[%clk 0:01:23]} 21. Nc3 {[%clk 0:01:43]}  Kg8 {[%clk 0:01:13]} 22. Kh1 {[%clk 0:01:42]}  Qd7 {[%clk 0:01:09]} 23. Qe3 {[%clk 0:01:39]}  f6 {[%clk 0:00:27]} 24. b4 {[%clk 0:01:37]}  Na4 {[%clk 0:00:26]} 25. Nxa4 {[%clk 0:01:33]}  Qxa4 {[%clk 0:00:27]} 26. f5 {[%clk 0:01:06]}  Bf7 {[%clk 0:00:26]} 27. fxg6 {[%clk 0:01:02]}  hxg6 {[%clk 0:00:26]} 28. Qh6 {[%clk 0:00:43]}  Qe8 {[%clk 0:00:26]} 29. Rbc1 {[%clk 0:00:40]}  Qf8 {[%clk 0:00:26]} 30. Qe3 {[%clk 0:00:40]}  Kg7 {[%clk 0:00:20]} 31. Rf1 {[%clk 0:00:40]}  Qh8 {[%clk 0:00:18]} 32. a3 {[%clk 0:00:37]}  Qh6 {[%clk 0:00:18]} 33. Qb6 {[%clk 0:00:36]}  Rd7 {[%clk 0:00:06]} 34. Bg4 {[%clk 0:00:33]}  Rc6 {[%clk 0:00:06]} 35. Qd4 {[%clk 0:00:24]}  Rdc7 {[%clk 0:00:06]} 36. Be2 {[%clk 0:00:22]}  b5 {[%clk 0:00:03]} 37. c5 {[%clk 0:00:21]}  dxc5 {[%clk 0:00:04]} 38. Rxc5 {[%clk 0:00:21]}  Rxc5 {[%clk 0:00:04]} 39. bxc5 {[%clk 0:00:22]}  Qg5 {[%clk 0:00:03]} 40. Qd8 {[%clk 0:00:21]}  Qxc5 {[%clk 0:00:03]} 41. Bf3 {[%clk 0:00:18]}  Qd6 {[%clk 0:00:03]} 42. Qa8 {[%clk 0:00:16]}  Qe5 {[%clk 0:00:03]} 43. Qxa6 {[%clk 0:00:15]}  Rc3 {[%clk 0:00:04]} 44. Qxb5 {[%clk 0:00:14]}  Qxb5 {[%clk 0:00:03]} 45. Re1 {[%clk 0:00:14]}  Qc4 {[%clk 0:00:04]} 46. e5 {[%clk 0:00:14]}  Rc1 {[%clk 0:00:04]} 47. exf6+ {[%clk 0:00:14]}  exf6 {[%clk 0:00:05]} 48. Rxc1 {[%clk 0:00:15]}  Qxc1+ {[%clk 0:00:05]} 49. Kh2 {[%clk 0:00:16]}  Qf4+ {[%clk 0:00:06]} 0-1


[Site "https://www.chess.com"]

[Event "Titled Tuesday Blitz April 11 Late 2023"]
[White "Michalski, Olaf"]
[Black "Perez Rodriguez, Jennifer"]
[WhiteFideId "1106740"]
[BlackFideId "3507831"]
[WhiteElo "2173"]
[BlackElo "2116"]
[Result "0-1"]
[Round "03"]
[TimeControl "180+2"]
[Date "2023.04.11"]
[WhiteClock "0:00:03"]
[BlackClock "0:01:23"]

1. d4 {[%clk 0:03:00]}  d5 {[%clk 0:02:59]} 2. c4 {[%clk 0:03:00]}  c6 {[%clk 0:02:59]} 3. cxd5 {[%clk 0:03:00]}  cxd5 {[%clk 0:02:59]} 4. Nc3 {[%clk 0:03:01]}  Nf6 {[%clk 0:02:55]} 5. Nf3 {[%clk 0:03:01]}  Nc6 {[%clk 0:02:56]} 6. Bf4 {[%clk 0:03:01]}  a6 {[%clk 0:02:56]} 7. e3 {[%clk 0:03:01]}  Bg4 {[%clk 0:02:53]} 8. h3 {[%clk 0:02:59]}  Bh5 {[%clk 0:02:52]} 9. Qb3 {[%clk 0:02:59]}  Na5 {[%clk 0:02:15]} 10. Qa4+ {[%clk 0:02:40]}  Nc6 {[%clk 0:02:14]} 11. Ne5 {[%clk 0:02:24]}  Qb6 {[%clk 0:02:11]} 12. Nxc6 {[%clk 0:00:34]}  bxc6 {[%clk 0:02:08]} 13. b3 {[%clk 0:00:33]}  e6 {[%clk 0:02:02]} 14. Bd3 {[%clk 0:00:32]}  Bb4 {[%clk 0:02:01]} 15. Kd2 {[%clk 0:00:29]}  Bg6 {[%clk 0:01:57]} 16. f3 {[%clk 0:00:20]}  O-O {[%clk 0:01:52]} 17. Bxg6 {[%clk 0:00:16]}  hxg6 {[%clk 0:01:49]} 18. Rhc1 {[%clk 0:00:16]}  c5 {[%clk 0:01:40]} 19. dxc5 {[%clk 0:00:14]}  Bxc5 {[%clk 0:01:40]} 20. Ne2 {[%clk 0:00:05]}  e5 {[%clk 0:01:35]} 21. Bg5 {[%clk 0:00:03]}  Nh7 {[%clk 0:01:23]} 0-1


[Site "https://www.chess.com"]

[Event "Titled Tuesday Blitz April 11 Late 2023"]
[White "Oliveira, Tiago Batista"]
[Black "Sliwicki, Damian"]
[WhiteFideId "2108291"]
[BlackFideId "1127128"]
[WhiteElo "1962"]
[BlackElo "2030"]
[Result "1-0"]
[Round "03"]
[TimeControl "180+2"]
[Date "2023.04.11"]
[WhiteClock "0:00:04"]
[BlackClock "0:00:05"]

1. d4 {[%clk 0:03:00]}  Nf6 {[%clk 0:02:57]} 2. c4 {[%clk 0:03:00]}  e5 {[%clk 0:02:56]} 3. dxe5 {[%clk 0:02:59]}  Ng4 {[%clk 0:02:57]} 4. e6 {[%clk 0:03:00]}  fxe6 {[%clk 0:02:52]} 5. e4 {[%clk 0:02:59]}  Bb4+ {[%clk 0:02:32]} 6. Bd2 {[%clk 0:02:50]}  Nxf2 {[%clk 0:01:31]} 7. Kxf2 {[%clk 0:02:50]}  Qf6+ {[%clk 0:01:28]} 8. Nf3 {[%clk 0:02:19]}  Qxb2 {[%clk 0:01:26]} 9. Qb3 {[%clk 0:01:43]}  Qxa1 {[%clk 0:00:36]} 10. Bxb4 {[%clk 0:01:34]}  Qf6 {[%clk 0:00:30]} 11. Bc3 {[%clk 0:01:33]}  Qf7 {[%clk 0:00:23]} 12. Bd3 {[%clk 0:01:22]}  O-O {[%clk 0:00:22]} 13. Rf1 {[%clk 0:01:22]}  Nc6 {[%clk 0:00:19]} 14. Kg1 {[%clk 0:01:21]}  d6 {[%clk 0:00:16]} 15. e5 {[%clk 0:01:17]}  Bd7 {[%clk 0:00:11]} 16. Qc2 {[%clk 0:01:12]}  Qh5 {[%clk 0:00:09]} 17. Nbd2 {[%clk 0:00:54]}  dxe5 {[%clk 0:00:07]} 18. Ne4 {[%clk 0:00:48]}  Nd4 {[%clk 0:00:03]} 19. Nxd4 {[%clk 0:00:43]}  Rxf1+ {[%clk 0:00:04]} 20. Bxf1 {[%clk 0:00:41]}  exd4 {[%clk 0:00:04]} 21. Bxd4 {[%clk 0:00:41]}  e5 {[%clk 0:00:04]} 22. Bc5 {[%clk 0:00:28]}  b6 {[%clk 0:00:03]} 23. Ba3 {[%clk 0:00:27]}  Bc6 {[%clk 0:00:04]} 24. c5 {[%clk 0:00:23]}  Qg6 {[%clk 0:00:03]} 25. Bd3 {[%clk 0:00:21]}  Rd8 {[%clk 0:00:03]} 26. Nd6 {[%clk 0:00:17]}  Qf6 {[%clk 0:00:01]} 27. Qc4+ {[%clk 0:00:14]}  Kh8 {[%clk 0:00:01]} 28. Nf7+ {[%clk 0:00:13]}  Kg8 {[%clk 0:00:01]} 29. Nxd8+ {[%clk 0:00:13]}  Kf8 {[%clk 0:00:01]} 30. Ne6+ {[%clk 0:00:12]}  Ke7 {[%clk 0:00:01]} 31. cxb6+ {[%clk 0:00:11]}  Kd7 {[%clk 0:00:02]} 32. bxc7 {[%clk 0:00:07]}  Qh4 {[%clk 0:00:01]} 33. Qxh4 {[%clk 0:00:06]}  Kxe6 {[%clk 0:00:02]} 34. Qe7+ {[%clk 0:00:06]}  Kd5 {[%clk 0:00:02]} 35. c8=Q {[%clk 0:00:05]}  Kd4 {[%clk 0:00:03]} 36. Qxc6 {[%clk 0:00:05]}  Ke3 {[%clk 0:00:04]} 37. Qxe5+ {[%clk 0:00:05]}  Kd2 {[%clk 0:00:04]} 38. Bf5 {[%clk 0:00:04]}  Kd1 {[%clk 0:00:05]} 39. Qcd6# {[%clk 0:00:04]} 1-0


[Site "https://www.chess.com"]